bitfinex/quotes_SOLUSD_20250830
["timestamp","ask_amount","ask_price","bid_price","bid_amount"]
[1756513184663,0.69,204.9,204.87,43.30111795]
[1756513186284,0.69000001,204.93,204.87,43.99111795]
[1756513187085,1e-08,204.93,204.87,43.99111795]
[1756513189695,1e-08,204.93,204.87,123.15111795]
[1756513189871,0.69000001,204.93,204.87,123.15111795]
[1756513190069,0.69000001,204.93,204.88,38.38]
[1756513190273,0.69,204.92,204.87,84.04111795]
[1756513190476,0.69,204.91,204.88,38.38]
[1756513190671,0.69,204.9,204.88,38.38]
[1756513191270,0.69,204.9,204.88,79.16]
[1756513191477,0.69,204.89,204.88,79.16]
[1756513196780,26.69,204.89,204.88,79.16]
[1756513197305,0.69,204.89,204.82,79.16]
[1756513197609,26.69,204.88,204.83,38.36]
[1756513197907,0.69,204.87,204.83,38.36]
[1756513198108,26.0,204.88,204.83,38.36]
[1756513198109,0.69,204.86,204.83,38.36]
[1756513198705,4.88080373,204.89,204.83,38.36]
[1756513199021,26.69,204.86,204.83,117.52]
[1756513199211,0.69,204.85,204.83,79.16]
[1756513200599,0.69,204.85,204.83,117.52]
[1756513201008,4.88080373,204.89,204.83,117.52]
[1756513201186,0.7,204.87,204.83,117.52]
[1756513201386,0.7,204.86,204.83,117.52]
[1756513201697,4.88080373,204.89,204.83,79.16]
[1756513201999,0.7,204.88,204.83,79.16]
[1756513202307,0.7,204.87,204.83,79.16]
[1756513202489,0.7,204.86,204.83,79.16]
[1756513202688,0.7,204.85,204.83,79.16]
[1756513202905,0.7,204.85,204.82,117.52]
[1756513203112,26.7,204.85,204.82,117.52]
[1756513203691,26.7,204.85,204.83,38.38]
[1756513205402,26.7,204.85,204.82,79.16]
[1756513205611,26.7,204.85,204.83,38.38]
[1756513205808,26.7,204.91,204.83,39.06]
[1756513205993,26.7,204.91,204.84,0.68]
[1756513206202,26.7,204.91,204.85,38.38]
[1756513206587,0.7,204.91,204.85,38.38]
[1756513206901,0.70000001,204.93,204.86,0.68]
[1756513207215,1e-08,204.93,204.87,38.38]
[1756513207515,26.00000001,204.93,204.88,0.68]
[1756513207809,26.70000001,204.93,204.89,38.38]
[1756513209090,1e-08,204.93,204.89,43.94057757]
[1756513210194,1e-08,204.93,204.9,0.68]
[1756513210394,1e-08,204.93,204.9,5.56026958]
[1756513210712,1e-08,204.93,204.89,43.26064393]
[1756513210898,1e-08,204.93,204.89,43.94064393]
[1756513211098,0.70000001,204.93,204.9,38.36]
[1756513211702,0.7,204.92,204.87,99.39140466]
[1756513211906,0.7,204.92,204.89,38.36]
[1756513212112,0.7,204.91,204.87,79.16]
[1756513212300,0.7,204.9,204.82,43.2423357]
[1756513212622,1e-08,204.93,204.82,43.2423357]
[1756513212623,26.0,204.91,204.83,14.27559401]
[1756513212796,26.0,204.91,204.84,39.04]
[1756513212992,26.0,204.9,204.84,39.04]
[1756513213622,0.7,204.91,204.84,0.68]
[1756513213818,0.7,204.91,204.85,38.36]
[1756513214131,0.7,204.91,204.85,43.241523]
[1756513214495,26.0,204.92,204.86,0.68]
[1756513215211,31.579752,204.93,204.86,0.68]
[1756513215699,31.579752,204.93,204.85,43.241523]
[1756513215890,0.7,204.92,204.85,4.881523]
[1756513216098,0.7,204.91,204.86,38.36]
[1756513216395,0.7,204.9,204.86,38.36]
[1756513217394,26.0,204.88,204.83,38.36]
[1756513217598,0.76,204.91,204.84,0.68]
[1756513218003,26.0,204.9,204.84,0.68]
[1756513218824,26.0,204.89,204.84,0.68]
[1756513219007,26.0,204.89,204.85,4.88162069]
[1756513220724,0.06,204.91,204.85,4.88162069]
[1756513221225,0.76,204.91,204.85,84.04162069]
[1756513224237,0.76,204.91,204.85,83.54162069]
[1756513225832,0.76,204.91,204.85,84.22162069]
[1756513229344,0.76,204.91,204.85,79.84]
[1756513229345,26.0,204.89,204.85,79.84]
[1756513229845,26.7,204.89,204.85,79.84]
[1756513230724,26.0,204.89,204.85,84.72162022]
[1756513234835,30.94022007,204.91,204.85,79.16]
[1756513235038,0.69,204.88,204.83,117.52]
[1756513235338,0.69,204.87,204.83,117.52]
[1756513235718,0.69,204.87,204.83,118.24]
[1756513235926,26.0,204.88,204.83,118.24]
[1756513236126,0.69,204.88,204.83,123.12209151]
[1756513236637,0.06,204.91,204.83,123.12209151]
[1756513236826,0.69,204.87,204.83,122.40209151]
[1756513238039,26.69,204.87,204.83,122.40209151]
[1756513238223,26.69,204.87,204.83,79.16]
[1756513238425,26.0,204.86,204.83,79.16]
[1756513238946,26.69,204.86,204.83,79.16]
[1756513239634,0.69,204.89,204.83,84.76206429]
[1756513243422,0.69,204.89,204.85,4.88162069]
[1756513243618,0.06,204.91,204.85,5.60162069]
[1756513243837,0.06,204.91,204.85,4.88162069]
[1756513244046,0.06,204.91,204.86,0.72]
[1756513244843,0.06,204.91,204.86,79.88]
[1756513245039,0.06,204.91,204.87,0.72]
[1756513245236,0.06,204.91,204.88,39.08]
[1756513245437,0.06,204.91,204.89,0.72]
[1756513245643,0.06,204.91,204.9,4.88042947]
[1756513246228,0.06,204.91,204.9,5.60042947]
[1756513246630,0.06,204.91,204.9,43.96042947]
[1756513248339,1e-08,204.93,204.91,13.59559401]
[1756513248560,1e-08,204.93,204.92,51.95559401]
[1756513248930,1e-08,204.93,204.92,52.67559401]
[1756513249742,1e-08,204.93,204.92,57.55554716]
[1756513251255,1e-08,204.93,204.92,4.87995315]
[1756513251438,1e-08,204.93,204.92,43.93995315]
[1756513251757,1e-08,204.93,204.92,123.09995315]
[1756513255161,1e-08,204.93,204.92,122.37995315]
[1756513255842,1e-08,204.93,204.92,123.09995315]
[1756513256560,1e-08,204.93,204.92,136.69554716]
[1756513256871,1e-08,204.93,204.92,138.65091616]
[1756513257888,0.06,204.94,204.93,97.63530902]
[1756513258177,0.06,204.94,204.93,98.35530902]
[1756513258859,0.06,204.94,204.93,232.81067802]
[1756513261863,1e-08,204.94,204.93,232.81067802]
[1756513263140,1e-08,204.94,204.93,271.13067802]
[1756513263366,1e-08,204.94,204.93,213.61536899]
[1756513263571,0.72000001,204.94,204.93,1.955369]
[1756513263745,0.72000001,204.94,204.85,0.03]
[1756513263746,4.87971502,204.93,204.85,0.03]
[1756513263947,26.0,204.9,204.87,1.95623]
[1756513264247,0.72,204.89,204.86,36.84]
[1756513264447,0.72,204.88,204.86,36.84]
[1756513264645,0.72,204.9,204.86,36.84]
[1756513264866,0.72,204.89,204.86,36.84]
[1756513265165,26.00000001,204.94,204.86,36.84]
[1756513265468,26.0,204.92,204.86,36.84]
[1756513265769,26.0,204.92,204.87,4.88114414]
[1756513265770,0.72,204.91,204.87,4.88114414]
[1756513266072,0.72,204.9,204.88,38.32]
[1756513266583,26.72000001,204.94,204.88,38.32]
[1756513266966,0.72,204.93,204.88,38.32]
[1756513267158,0.72,204.92,204.88,38.32]
[1756513267353,0.72,204.91,204.88,38.32]
[1756513267868,0.72,204.91,204.88,43.20079017]
[1756513268073,0.72,204.9,204.88,38.32]
[1756513268264,26.0,204.93,204.88,38.32]
[1756513268570,0.72,204.89,204.88,38.32]
[1756513268786,0.72,204.89,204.85,0.03]
[1756513268959,0.72,204.89,204.86,38.32]
[1756513269295,0.72,204.88,204.86,38.32]
[1756513269651,26.0,204.9,204.86,38.32]
[1756513269848,0.72,204.89,204.86,38.32]
[1756513270066,0.72,204.89,204.86,43.20135655]
[1756513270472,1e-08,204.94,204.86,43.20135655]
[1756513270683,26.72,204.93,204.86,43.20135655]
[1756513270986,0.72,204.92,204.86,43.20135655]
[1756513271160,26.72,204.91,204.86,43.20135655]
[1756513271363,0.72,204.9,204.86,43.20135655]
[1756513271562,26.0,204.91,204.86,43.88135655]
[1756513271883,26.72,204.93,204.87,0.68]
[1756513272090,0.72,204.93,204.88,38.32]
[1756513272267,0.72,204.92,204.88,38.32]
[1756513272586,26.72000001,204.94,204.88,39.0]
[1756513272790,0.72,204.93,204.88,38.32]
[1756513273091,0.72,204.93,204.86,4.88135655]
[1756513273092,0.72,204.92,204.89,43.2005651]
[1756513274181,0.72,204.92,204.89,45.1566031]
[1756513275272,0.72,204.92,204.89,40.276038]
[1756513275468,0.72,204.91,204.9,38.32]
[1756513276087,0.72,204.91,204.89,79.15999999]
[1756513276293,0.72,204.91,204.89,117.47999999]
[1756513276662,0.72,204.9,204.89,79.15999999]
[1756513276964,0.72,204.9,204.85,117.50999999]
[1756513277290,0.72,204.89,204.85,117.50999999]
[1756513277580,0.72,204.88,204.85,117.50999999]
[1756513277784,0.72,204.87,204.85,117.50999999]
[1756513277961,0.72,204.87,204.85,122.3915774]
[1756513278161,0.72,204.87,204.85,117.50999999]
[1756513279561,0.72,204.87,204.85,79.18999999]
[1756513279766,0.72,204.86,204.85,0.03]
[1756513283872,0.72,204.88,204.85,0.03]
[1756513284477,0.72,204.87,204.85,0.03]
[1756513285394,0.72,204.89,204.85,4.91162069]
[1756513285597,0.72,204.88,204.85,4.91162069]
[1756513286274,0.72,204.87,204.85,4.91162069]
[1756513286696,26.0,204.91,204.85,4.91162069]
[1756513286901,0.72,204.89,204.85,4.91162069]
[1756513287097,0.72,204.88,204.85,4.91162069]
[1756513287404,0.72,204.87,204.85,4.91162069]
[1756513287578,0.72,204.86,204.85,0.03]
[1756513289913,0.72,204.86,204.84,9.32215515]
[1756513290601,0.72,204.86,204.84,88.48215514]
[1756513291081,30.8802454,204.91,204.84,88.48215514]
[1756513291401,0.71,204.9,204.84,88.48215514]
[1756513291585,0.71,204.89,204.84,88.48215514]
[1756513291789,0.71,204.88,204.84,88.48215514]
[1756513291990,0.71,204.87,204.84,88.48215514]
[1756513293800,30.8802454,204.91,204.84,88.48215514]
[1756513294021,26.0,204.91,204.84,84.04182945]
[1756513294306,26.71,204.9,204.84,84.04182945]
[1756513294506,0.71,204.89,204.84,84.04182945]
[1756513294689,26.0,204.9,204.84,84.04182945]
[1756513294903,0.71,204.89,204.84,84.04182945]
[1756513295085,0.71,204.88,204.84,84.04182945]
[1756513296809,30.8804436,204.9,204.84,79.15999999]
[1756513297110,0.71,204.87,204.84,79.15999999]
[1756513297782,30.8804436,204.9,204.84,79.15999999]
[1756513297982,0.71,204.89,204.84,79.15999999]
[1756513298183,0.71,204.88,204.84,79.15999999]
[1756513298479,0.71,204.87,204.84,79.15999999]
[1756513301505,0.71,204.89,204.84,84.73184988]
[1756513301696,26.0,204.9,204.84,84.73184988]
[1756513301697,0.71,204.88,204.84,84.04184988]
[1756513302521,0.71,204.87,204.84,79.15999999]
[1756513302695,0.71,204.88,204.84,79.15999999]
[1756513303107,30.8805105,204.9,204.84,79.15999999]
[1756513303421,0.71,204.87,204.84,79.15999999]
[1756513305203,0.71,204.87,204.84,79.18999999]
[1756513305696,0.77,204.87,204.84,79.18999999]
[1756513309215,0.06,204.87,204.84,79.18999999]
[1756513309409,0.71,204.86,204.84,79.18999999]
[1756513310353,0.06,204.87,204.84,79.18999999]
[1756513310644,0.77,204.87,204.84,79.18999999]
[1756513310837,0.77,204.87,204.84,78.68999999]
[1756513312537,0.77,204.87,204.84,78.18999999]
[1756513314735,0.06,204.87,204.84,78.18999999]
[1756513315035,0.71,204.86,204.84,78.18999999]
[1756513315445,0.77,204.87,204.84,78.18999999]
[1756513318938,0.71,204.86,204.84,78.18999999]
[1756513319462,0.06,204.87,204.84,78.18999999]
[1756513319645,0.77,204.87,204.84,78.18999999]
[1756513322036,0.06,204.87,204.85,38.98]
[1756513322463,0.06,204.87,204.86,0.7]
[1756513323263,0.06,204.87,204.86,15.371003]
[1756513324167,0.06,204.87,204.86,20.2523854]
[1756513325962,0.06,204.87,204.86,98.41238539]
[1756513327059,0.06,204.87,204.86,121.32138239]
[1756513327240,0.06,204.87,204.86,135.99238539]
[1756513327641,0.06,204.87,204.86,136.69238539]
[1756513328364,0.06,204.87,204.86,150.2879794]
[1756513328754,1e-08,204.87,204.86,150.2879794]
[1756513331280,0.06,204.9,204.89,13.59559401]
[1756513331482,1e-08,204.94,204.89,184.37559401]
[1756513331666,1e-08,204.94,204.91,13.59559401]
[1756513331862,1e-08,204.94,204.92,38.26]
[1756513332059,1e-08,204.94,204.92,38.96]
[1756513332283,1e-08,204.94,204.93,0.7]
[1756513332484,1e-08,204.94,204.92,0.7]
[1756513332673,1e-08,204.94,204.93,38.26]
[1756513333179,1e-08,204.94,204.93,45.09518002]
[1756513333989,1e-08,204.94,204.93,270.53874551]
[1756513334200,1e-08,204.94,204.93,270.05077401]
[1756513337966,0.06,204.96,204.95,4.87923883]
[1756513338285,0.06,204.96,204.95,121.2992388]
[1756513338672,0.06,204.96,204.95,121.9992388]
[1756513339293,0.06,204.96,204.95,123.9545118]
[1756513339794,0.06,204.99,204.96,13.59559401]
[1756513340089,0.06,204.99,204.98,13.59559401]
[1756513340298,0.06,204.99,204.98,91.75559398]
[1756513340475,0.06,204.99,204.98,92.45559398]
[1756513341087,22.52,205.12,204.98,224.95559398]
[1756513341272,26.0,205.09,205.0,13.59559401]
[1756513341466,0.72,205.08,205.02,13.59559401]
[1756513341668,0.72,205.07,204.99,13.59559401]
[1756513341866,0.72,205.06,205.02,4.87757291]
[1756513342065,0.72,205.05,205.03,52.898816]
[1756513344291,0.72,205.05,205.04,4.87709715]
[1756513344478,0.72,205.05,205.04,97.69591312]
[1756513345070,0.72,205.05,205.04,135.93591312]
[1756513346092,0.72,205.05,205.04,116.39999997]
[1756513346292,0.72,205.05,205.04,78.15999997]
[1756513346485,0.72,205.05,205.04,116.39999997]
[1756513346675,0.72,205.05,205.04,78.15999997]
[1756513347686,0.72,205.05,205.04,116.37999997]
[1756513348392,0.78,205.07,205.04,116.37999997]
[1756513348601,0.06,205.07,205.04,121.25709712]
[1756513348798,0.06,205.07,205.05,14.29559401]
[1756513349098,1e-08,205.07,205.06,51.81559401]
[1756513349284,1e-08,205.07,205.06,52.51559401]
[1756513349998,1e-08,205.07,205.06,54.46943401]
[1756513350373,1e-08,205.07,205.06,59.34605548]
[1756513351171,0.06,205.1,205.07,13.59559401]
[1756513351373,0.06,205.1,205.09,13.59559401]
[1756513351796,0.06,205.1,205.09,14.28559401]
[1756513351981,0.06,205.1,205.09,16.23924301]
[1756513352178,0.06,205.1,205.09,21.11515114]
[1756513353404,0.06,205.1,205.09,6.82955713]
[1756513353591,0.76,205.1,205.09,45.04955713]
[1756513353794,0.06,205.1,205.09,45.04955713]
[1756513355597,0.06,205.12,205.1,78.09999997]
[1756513355782,0.06,205.12,205.11,38.2]
[1756513355989,0.06,205.12,205.11,51.79559401]
[1756513356399,0.06,205.12,205.11,71.3233997]
[1756513356983,0.06,205.12,205.11,149.42339967]
[1756513357508,0.06,205.12,205.11,150.11339967]
[1756513360400,0.7,205.25,205.15,39.59559401]
[1756513360600,0.7,205.25,205.17,13.59559401]
[1756513360807,0.7,205.25,205.19,13.59559401]
[1756513361005,0.7,205.25,205.21,13.59559401]
[1756513361212,0.7,205.25,205.22,38.2]
[1756513361509,4.87048456,205.32,205.23,38.2]
[1756513361510,0.7,205.24,205.23,38.2]
[1756513361685,0.7,205.24,205.23,52.844505]
[1756513362289,0.7,205.24,205.23,14.644505]
[1756513362502,0.7,205.24,205.23,52.844505]
[1756513362699,0.7,205.24,205.23,19.51708698]
[1756513362898,0.7,205.24,205.23,57.71708698]
[1756513363224,0.7,205.24,205.23,19.51708698]
[1756513363411,0.7,205.26,205.23,57.69708698]
[1756513363612,0.7,205.25,205.23,57.69708698]
[1756513363822,0.7,205.25,205.23,43.05258198]
[1756513364122,0.76,205.25,205.24,14.644505]
[1756513364626,0.06,205.25,205.24,19.51684957]
[1756513365388,0.06,205.25,205.24,97.61684954]
[1756513365818,0.06,205.25,205.24,111.21244355]
[1756513366020,0.06,205.25,205.24,111.90244355]
[1756513366319,0.06,205.25,205.24,111.21244355]
[1756513367500,0.06,205.25,205.24,150.08244355]
[1756513368607,0.06,205.28,205.25,13.59559401]
[1756513368795,0.06,205.28,205.27,13.59559401]
[1756513369212,0.06,205.28,205.27,18.46458701]
[1756513369416,0.06,205.28,205.27,23.33621949]
[1756513370416,0.06,205.28,205.27,61.49621949]
[1756513370626,0.06,205.28,205.27,23.33621949]
[1756513370824,0.06,205.28,205.27,61.49621949]
[1756513371506,0.06,205.28,205.27,56.62722649]
[1756513371907,0.06,205.28,205.27,18.46722649]
[1756513372218,0.06,205.28,205.27,56.62722649]
[1756513373208,0.06,205.28,205.27,57.31722649]
[1756513373515,0.06,205.28,205.27,135.41722646]
[1756513374111,0.06,205.28,205.27,150.05672846]
[1756513375397,0.06,205.28,205.27,111.89672846]
[1756513375801,0.06,205.28,205.27,150.05672846]
[1756513376324,0.7,205.34,205.27,162.23580967]
[1756513376826,0.7,205.34,205.27,147.59630767]
[1756513377009,0.7,205.34,205.29,13.59559401]
[1756513377326,0.7,205.33,205.32,18.46604014]
[1756513377625,0.7,205.33,205.32,56.62604014]
[1756513377810,0.7,205.35,205.32,56.62604014]
[1756513378011,0.7,205.34,205.32,56.62604014]
[1756513378228,0.7,205.33,205.32,56.62604014]
[1756513381326,0.7,205.33,205.32,18.46604014]
[1756513381515,0.7,205.33,205.25,13.59559401]
[1756513381719,0.72,205.32,205.26,52.779502]
[1756513382018,0.72,205.31,205.26,14.639502]
[1756513382214,0.72,205.31,205.28,13.59559401]
[1756513382415,26.0,205.39,205.29,38.14]
[1756513382624,0.72,205.32,205.29,38.14]
[1756513382818,0.72,205.31,205.3,4.8709206]
[1756513383212,0.72,205.34,205.3,4.8709206]
[1756513383442,0.72,205.34,205.31,38.14]
[1756513384022,0.72,205.34,205.32,13.59559401]
[1756513384240,0.72,205.34,205.33,38.14]
[1756513384435,4.86807516,205.42,205.33,38.14]
[1756513384739,4.86807516,205.42,205.34,38.14]
[1756513384912,0.72,205.41,205.34,38.14]
[1756513385113,0.72,205.4,205.34,43.00995919]
[1756513385420,0.72,205.39,205.34,38.14]
[1756513385728,0.72,205.38,205.34,38.14]
[1756513385917,0.72,205.37,205.33,4.87008931]
[1756513386112,0.72,205.36,205.35,38.14]
[1756513387535,0.72,205.36,205.32,4.87022779]
[1756513387828,0.72,205.35,205.33,38.14]
[1756513388031,0.72,205.34,205.32,4.87022779]
[1756513388231,0.72,205.33,205.32,4.87022779]
[1756513388404,4.86867354,205.4,205.32,4.87022779]
[1756513388405,0.72,205.35,205.32,4.87022779]
[1756513388611,0.72,205.34,205.3,4.87079904]
[1756513388939,0.72,205.33,205.31,38.14]
[1756513389126,26.0,205.41,205.31,38.14]
[1756513389127,0.72,205.32,205.31,38.14]
[1756513389837,0.72,205.32,205.31,38.12]
[1756513391052,0.72,205.32,205.31,42.99068335]
[1756513391429,0.72,205.32,205.31,38.12]
[1756513391846,0.72,205.32,205.29,78.09999997]
[1756513392048,0.72,205.32,205.3,38.12]
[1756513392247,0.72,205.32,205.31,38.12]
[1756513392830,0.72,205.32,205.3,4.87080211]
[1756513393046,0.72,205.32,205.31,38.12]
[1756513394957,0.72,205.34,205.31,38.12]
[1756513395271,0.72,205.33,205.31,42.99053661]
[1756513395759,0.72,205.33,205.31,4.87053661]
[1756513395957,0.72,205.33,205.32,38.12]
[1756513397153,0.72,205.33,205.29,18.4665181]
[1756513397348,0.72,205.32,205.3,38.12]
[1756513398146,4.86881908,205.39,205.3,38.12]
[1756513398345,0.72,205.38,205.31,14.30559401]
[1756513398542,0.72,205.37,205.32,42.99044613]
[1756513398858,0.72,205.36,205.32,4.87044613]
[1756513399146,0.72,205.35,205.32,4.87044613]
[1756513399352,0.72,205.35,205.33,38.12]
[1756513400557,0.72,205.37,205.34,4.86997175]
[1756513400736,0.72,205.37,205.35,38.12]
[1756513401131,0.72,205.36,205.35,38.12]
[1756513402650,0.72,205.38,205.35,38.12]
[1756513402849,0.72,205.37,205.35,38.12]
[1756513403040,0.06,205.36,205.35,38.12]
[1756513403865,0.78,205.36,205.35,38.12]
[1756513404441,0.78,205.36,205.32,4.87041302]
[1756513404641,0.72,205.35,205.33,38.12]
[1756513404848,0.72,205.34,205.28,0.03]
[1756513405671,26.0,205.33,205.28,0.03]
[1756513405835,0.72,205.32,205.28,0.03]
[1756513406033,0.72,205.32,205.28,78.12999997]
[1756513406239,0.72,205.31,205.28,78.12999997]
[1756513406455,0.72,205.3,205.28,78.12999997]
[1756513406660,26.0,205.33,205.28,78.12999997]
[1756513406846,0.72,205.32,205.29,38.12]
[1756513407042,0.72,205.31,205.29,38.12]
[1756513407539,0.72,205.3,205.28,78.12999997]
[1756513407744,0.72,205.29,205.28,116.24999997]
[1756513408045,26.72,205.32,205.28,116.24999997]
[1756513408253,0.72,205.31,205.28,121.12138943]
[1756513408751,0.72,205.33,205.29,0.71]
[1756513409066,0.72,205.33,205.3,38.12]
[1756513409259,0.72,205.32,205.3,38.12]
[1756513409866,30.92952538,205.36,205.3,38.12]
[1756513410166,0.72,205.35,205.3,38.12]
[1756513410335,4.8698204,205.35,205.3,38.12]
[1756513410542,26.0,205.32,205.3,38.12]
[1756513410846,0.71,205.31,205.28,78.12999997]
[1756513411052,0.71,205.31,205.29,38.1]
[1756513411261,0.71,205.3,205.29,38.1]
[1756513414566,26.0,205.33,205.29,43.67110388]
[1756513414766,26.71,205.33,205.29,43.67110388]
[1756513414946,26.71,205.33,205.29,121.07110385]
[1756513415449,0.71,205.33,205.29,121.07110385]
[1756513415661,0.71,205.32,205.29,116.19999997]
[1756513415968,0.71,205.31,205.29,116.19999997]
[1756513416371,0.71,205.33,205.29,116.19999997]
[1756513416551,0.71,205.32,205.29,116.19999997]
[1756513418674,0.06,205.36,205.29,121.07114075]
[1756513418875,0.06,205.36,205.3,0.7]
[1756513419051,0.06,205.36,205.31,38.1]
[1756513419249,0.06,205.36,205.32,0.7]
[1756513419454,0.06,205.36,205.33,38.8]
[1756513420462,0.06,205.36,205.34,5.56997175]
[1756513420665,0.06,205.36,205.35,38.1]
[1756513421556,0.06,205.36,205.35,42.96973459]
[1756513423778,0.06,205.36,205.35,38.1]
[1756513427175,0.06,205.36,205.35,42.96973459]
[1756513427381,0.06,205.36,205.35,43.66973459]
[1756513427684,0.06,205.36,205.35,42.96973459]
[1756513427989,0.77,205.36,205.31,13.59559401]
[1756513428163,0.06,205.36,205.32,38.8]
[1756513428687,0.06,205.36,205.33,0.7]
[1756513428869,0.06,205.36,205.34,38.1]
[1756513429871,0.06,205.36,205.34,42.96981111]
[1756513430364,0.06,205.36,205.34,4.86981111]
[1756513430563,0.06,205.36,205.35,38.08]
[1756513435286,0.06,205.36,205.33,4.87020893]
[1756513435484,0.06,205.36,205.35,0.7]
[1756513436879,0.06,205.36,205.34,52.715931]
[1756513437064,0.06,205.36,205.34,38.08]
[1756513437265,0.06,205.36,205.34,38.78]
[1756513437485,0.06,205.36,205.35,4.86973459]
[1756513438083,0.06,205.36,205.35,5.56973459]
[1756513439073,0.06,205.36,205.35,48.51734159]
[1756513441065,0.06,205.36,205.35,47.81734159]
[1756513441277,0.06,205.36,205.35,9.73734159]
[1756513441482,0.06,205.36,205.35,42.94973459]
[1756513444284,0.06,205.36,205.35,136.8153286]
[1756513444689,0.06,205.36,205.35,151.4505466]
[1756513447086,0.06,205.36,205.35,113.3705466]
[1756513447398,0.77,205.36,205.35,117.66]
[1756513449278,0.77,205.36,205.35,122.52973459]
[1756513450498,0.06,205.36,205.35,84.46973459]
[1756513450785,0.06,205.36,205.35,122.52973459]
[1756513450995,0.06,205.36,205.35,123.19973459]
[1756513451182,0.06,205.36,205.35,136.7953286]
[1756513451585,0.06,205.36,205.35,138.7466906]
[1756513452180,0.06,205.39,205.36,13.59559401]
[1756513452487,0.06,205.39,205.38,18.46461728]
[1756513452796,0.71,205.43,205.38,30.63717546]
[1756513453097,0.71,205.42,205.39,38.06]
[1756513454189,0.71,205.44,205.4,0.67]
[1756513454401,0.71,205.47,205.41,38.73]
[1756513454575,0.71,205.51,205.43,13.59559401]
[1756513454777,0.71,205.53,205.44,38.73]
[1756513454989,0.71,205.53,205.46,13.59559401]
[1756513455196,0.71,205.53,205.47,38.06]
[1756513456273,0.71,205.53,205.48,17.0332879]
[1756513456476,0.71,205.53,205.49,38.06]
[1756513456691,0.71,205.52,205.49,38.06]
[1756513457206,0.71,205.51,205.47,19.49352943]
[1756513457511,0.71,205.52,205.48,38.04]
[1756513457796,0.71,205.55,205.49,0.67]
[1756513458000,0.71,205.55,205.5,38.04]
[1756513458189,0.71,205.54,205.5,38.04]
[1756513458393,0.71,205.54,205.51,4.86594326]
[1756513458590,0.71,205.54,205.52,38.04]
[1756513459109,20.0,205.73,205.53,14.26559401]
[1756513459405,0.71,205.62,205.55,13.59559401]
[1756513459603,0.71,205.61,205.56,38.04]
[1756513459804,13.59559401,205.71,205.56,38.04]
[1756513459805,0.71,205.6,205.56,38.04]
[1756513460104,0.71,205.6,205.57,14.620952]
[1756513460278,0.71,205.6,205.58,42.9042864]
[1756513460480,0.71,205.63,205.58,42.9042864]
[1756513460678,0.71,205.63,205.58,43.5742864]
[1756513460880,0.71,205.62,205.58,42.9042864]
[1756513461495,0.71,205.62,205.58,4.8642864]
[1756513461696,26.0,205.68,205.59,38.04]
[1756513461883,0.71,205.67,205.6,4.86381322]
[1756513462090,0.71,205.66,205.61,38.04]
[1756513462284,0.71,205.65,205.61,38.04]
[1756513462499,0.71,205.64,205.61,38.04]